[Event "Titled Tuesday Blitz August 08 Late 2023"]
[White "Fernandez Madrid, Carlos"]
[Black "Maluco_do_Natal_00"]
[WhiteFideId "2206030"]
[WhiteElo "2276"]
[BlackElo "2079"]
[Result "0-1"]
[Round "6"]
[TimeControl "180+1"]
[Date "2023.08.08"]
[WhiteClock "0:01:52"]
[BlackClock "0:00:29"]
[Board "153"]

1. c4 {[%clk 0:03:00]}  c5 {[%clk 0:02:59]} 2. g3 {[%clk 0:03:00]}  Nc6 {[%clk 0:03:00]} 3. Bg2 {[%clk 0:02:59]}  Nf6 {[%clk 0:03:00]} 4. Nc3 {[%clk 0:02:59]}  g6 {[%clk 0:03:00]} 5. d3 {[%clk 0:03:00]}  Bg7 {[%clk 0:03:00]} 6. e4 {[%clk 0:03:00]}  O-O {[%clk 0:03:00]} 7. Nge2 {[%clk 0:03:00]}  d6 {[%clk 0:03:00]} 8. O-O {[%clk 0:03:00]}  a6 {[%clk 0:02:58]} 9. f4 {[%clk 0:03:00]}  Rb8 {[%clk 0:02:57]} 10. h3 {[%clk 0:03:00]}  h5 {[%clk 0:02:53]} 11. f5 {[%clk 0:02:59]}  b5 {[%clk 0:02:40]} 12. fxg6 {[%clk 0:02:58]}  fxg6 {[%clk 0:02:39]} 13. Nd5 {[%clk 0:02:56]}  Nxd5 {[%clk 0:02:34]} 14. cxd5 {[%clk 0:02:56]}  Nd4 {[%clk 0:02:34]} 15. Rxf8+ {[%clk 0:02:54]}  Qxf8 {[%clk 0:02:31]} 16. Nxd4 {[%clk 0:02:50]}  Bxd4+ {[%clk 0:02:30]} 17. Kh2 {[%clk 0:02:50]}  Qf2 {[%clk 0:02:12]} 18. Qf1 {[%clk 0:02:45]}  Qxf1 {[%clk 0:02:01]} 19. Bxf1 {[%clk 0:02:44]}  Bd7 {[%clk 0:02:02]} 20. Rb1 {[%clk 0:02:43]}  Rf8 {[%clk 0:01:59]} 21. Bg5 {[%clk 0:02:43]}  Rf2+ {[%clk 0:01:54]} 22. Bg2 {[%clk 0:02:42]}  Kf7 {[%clk 0:01:43]} 23. b4 {[%clk 0:02:40]}  Rxa2 {[%clk 0:01:38]} 24. bxc5 {[%clk 0:02:39]}  dxc5 {[%clk 0:01:32]} 25. Rf1+ {[%clk 0:02:38]}  Rf2 {[%clk 0:01:31]} 26. Re1 {[%clk 0:02:36]}  e5 {[%clk 0:01:22]} 27. dxe6+ {[%clk 0:02:35]}  Kxe6 {[%clk 0:01:18]} 28. h4 {[%clk 0:02:33]}  a5 {[%clk 0:01:09]} 29. Kh1 {[%clk 0:02:30]}  Kf7 {[%clk 0:01:04]} 30. e5 {[%clk 0:02:29]}  Be6 {[%clk 0:01:00]} 31. Bc6 {[%clk 0:02:17]}  a4 {[%clk 0:00:48]} 32. Bxb5 {[%clk 0:02:16]}  Bd5+ {[%clk 0:00:46]} 33. Kg1 {[%clk 0:02:06]}  Rb2+ {[%clk 0:00:38]} 34. Be3 {[%clk 0:02:01]}  Rxb5 {[%clk 0:00:38]} 35. Bxd4 {[%clk 0:02:01]}  cxd4 {[%clk 0:00:38]} 36. Rf1+ {[%clk 0:01:59]}  Ke6 {[%clk 0:00:34]} 37. Rf6+ {[%clk 0:01:59]}  Kxe5 {[%clk 0:00:34]} 38. Rxg6 {[%clk 0:01:59]}  Ra5 {[%clk 0:00:34]} 39. Rg5+ {[%clk 0:01:58]}  Kd6 {[%clk 0:00:34]} 40. Rxh5 {[%clk 0:01:58]}  a3 {[%clk 0:00:35]} 41. Rh6+ {[%clk 0:01:59]}  Kc5 {[%clk 0:00:34]} 42. Rf6 {[%clk 0:01:56]}  a2 {[%clk 0:00:34]} 43. Rf1 {[%clk 0:01:57]}  a1=Q {[%clk 0:00:35]} 44. Rxa1 {[%clk 0:01:57]}  Rxa1+ {[%clk 0:00:35]} 45. Kf2 {[%clk 0:01:57]}  Ra2+ {[%clk 0:00:33]} 46. Kg1 {[%clk 0:01:56]}  Rd2 {[%clk 0:00:33]} 47. g4 {[%clk 0:01:56]}  Rxd3 {[%clk 0:00:33]} 48. Kf2 {[%clk 0:01:55]}  Kd6 {[%clk 0:00:31]} 49. g5 {[%clk 0:01:56]}  Ke6 {[%clk 0:00:31]} 50. h5 {[%clk 0:01:55]}  Kf5 {[%clk 0:00:30]} 51. g6 {[%clk 0:01:56]}  Kg5 {[%clk 0:00:30]} 52. Ke2 {[%clk 0:01:54]}  Re3+ {[%clk 0:00:30]} 53. Kd2 {[%clk 0:01:54]}  Kxh5 {[%clk 0:00:30]} 54. g7 {[%clk 0:01:52]}  Kg6 {[%clk 0:00:29]} 0-1


[Site "https://www.chess.com"]

[Event "Titled Tuesday Blitz August 08 Late 2023"]
[White "Cagara, Paulina"]
[Black "Gyulamiryan-koryun"]
[WhiteFideId "1124870"]
[WhiteElo "2263"]
[BlackElo "2053"]
[Result "1-0"]
[Round "6"]
[TimeControl "180+1"]
[Date "2023.08.08"]
[WhiteClock "0:00:47"]
[BlackClock "0:00:00"]
[Board "155"]

1. e4 {[%clk 0:03:00]}  e5 {[%clk 0:02:56]} 2. Nf3 {[%clk 0:02:59]}  Nc6 {[%clk 0:02:54]} 3. c3 {[%clk 0:02:59]}  Nf6 {[%clk 0:02:50]} 4. d4 {[%clk 0:02:58]}  exd4 {[%clk 0:02:50]} 5. e5 {[%clk 0:02:58]}  Nd5 {[%clk 0:02:45]} 6. cxd4 {[%clk 0:02:58]}  Bb4+ {[%clk 0:02:43]} 7. Bd2 {[%clk 0:02:58]}  O-O {[%clk 0:02:40]} 8. Bb5 {[%clk 0:02:55]}  a6 {[%clk 0:02:35]} 9. Ba4 {[%clk 0:02:54]}  b5 {[%clk 0:02:27]} 10. Bb3 {[%clk 0:02:53]}  Bxd2+ {[%clk 0:02:26]} 11. Nbxd2 {[%clk 0:02:52]}  Nb6 {[%clk 0:02:25]} 12. O-O {[%clk 0:02:51]}  Bb7 {[%clk 0:02:24]} 13. Ne4 {[%clk 0:02:39]}  Na5 {[%clk 0:02:22]} 14. Nc5 {[%clk 0:02:38]}  Nxb3 {[%clk 0:02:17]} 15. Qxb3 {[%clk 0:02:37]}  Bd5 {[%clk 0:02:15]} 16. Qe3 {[%clk 0:02:32]}  d6 {[%clk 0:02:11]} 17. Nb3 {[%clk 0:02:24]}  Nc4 {[%clk 0:02:10]} 18. Qf4 {[%clk 0:02:19]}  Nxb2 {[%clk 0:01:59]} 19. Nbd2 {[%clk 0:02:08]}  Nd3 {[%clk 0:01:52]} 20. Qf5 {[%clk 0:02:07]}  Nb4 {[%clk 0:01:38]} 21. a3 {[%clk 0:02:04]}  Nc6 {[%clk 0:01:37]} 22. Rfe1 {[%clk 0:01:57]}  g6 {[%clk 0:01:37]} 23. Qh3 {[%clk 0:01:56]}  Be6 {[%clk 0:01:36]} 24. Qg3 {[%clk 0:01:55]}  Ne7 {[%clk 0:01:35]} 25. Qf4 {[%clk 0:01:49]}  Nf5 {[%clk 0:01:29]} 26. Rad1 {[%clk 0:01:44]}  Bd5 {[%clk 0:01:22]} 27. Ng5 {[%clk 0:01:34]}  Ng7 {[%clk 0:01:19]} 28. Nde4 {[%clk 0:01:30]}  Bxe4 {[%clk 0:01:11]} 29. Nxe4 {[%clk 0:01:30]}  Ne6 {[%clk 0:01:01]} 30. Nf6+ {[%clk 0:01:29]}  Kg7 {[%clk 0:00:53]} 31. Qh4 {[%clk 0:01:27]}  h5 {[%clk 0:00:43]} 32. Qg3 {[%clk 0:01:17]}  d5 {[%clk 0:00:25]} 33. Nxh5+ {[%clk 0:01:14]}  Kh6 {[%clk 0:00:21]} 34. Nf6 {[%clk 0:01:11]}  Kg7 {[%clk 0:00:20]} 35. Rc1 {[%clk 0:01:05]}  Rh8 {[%clk 0:00:17]} 36. Qe3 {[%clk 0:00:56]}  Rh4 {[%clk 0:00:13]} 37. g3 {[%clk 0:00:52]}  Rxd4 {[%clk 0:00:11]} 38. Rc6 {[%clk 0:00:52]}  Rc4 {[%clk 0:00:07]} 39. Rc1 {[%clk 0:00:49]}  d4 {[%clk 0:00:00]} 40. Qf3 {[%clk 0:00:47]} 1-0


[Site "https://www.chess.com"]

[Event "Titled Tuesday Blitz August 08 Late 2023"]
[White "Upper, John"]
[Black "Hng, Mei-En Emmanuelle"]
[WhiteFideId "2606437"]
[BlackFideId "5804566"]
[WhiteElo "1953"]
[BlackElo "2256"]
[Result "0-1"]
[Round "6"]
[TimeControl "180+1"]
[Date "2023.08.08"]
[WhiteClock "0:00:00"]
[BlackClock "0:01:01"]
[Board "156"]

1. b3 {[%clk 0:03:00]}  e5 {[%clk 0:02:57]} 2. Bb2 {[%clk 0:03:00]}  Nc6 {[%clk 0:02:57]} 3. e3 {[%clk 0:03:01]}  d5 {[%clk 0:02:53]} 4. g3 {[%clk 0:02:56]}  Nf6 {[%clk 0:02:51]} 5. Bg2 {[%clk 0:02:57]}  h5 {[%clk 0:02:44]} 6. h3 {[%clk 0:02:53]}  Bf5 {[%clk 0:02:39]} 7. d3 {[%clk 0:02:51]}  Bb4+ {[%clk 0:02:37]} 8. Nd2 {[%clk 0:02:50]}  Qd7 {[%clk 0:02:36]} 9. a3 {[%clk 0:02:50]}  Bd6 {[%clk 0:02:35]} 10. c4 {[%clk 0:02:39]}  d4 {[%clk 0:02:31]} 11. e4 {[%clk 0:02:34]}  Be6 {[%clk 0:02:29]} 12. b4 {[%clk 0:02:21]}  a5 {[%clk 0:02:23]} 13. b5 {[%clk 0:01:55]}  Nd8 {[%clk 0:02:22]} 14. Ne2 {[%clk 0:01:48]}  a4 {[%clk 0:02:20]} 15. f4 {[%clk 0:01:38]}  Qe7 {[%clk 0:02:11]} 16. Nf3 {[%clk 0:01:29]}  exf4 {[%clk 0:01:52]} 17. gxf4 {[%clk 0:01:28]}  Bc5 {[%clk 0:01:50]} 18. Nexd4 {[%clk 0:00:56]}  Bxd4 {[%clk 0:01:50]} 19. Nxd4 {[%clk 0:00:52]}  c5 {[%clk 0:01:47]} 20. bxc6 {[%clk 0:00:41]}  Nxc6 {[%clk 0:01:46]} 21. Nxc6 {[%clk 0:00:40]}  bxc6 {[%clk 0:01:47]} 22. e5 {[%clk 0:00:39]}  Bf5 {[%clk 0:01:34]} 23. Bxc6+ {[%clk 0:00:36]}  Kf8 {[%clk 0:01:32]} 24. Bxa8 {[%clk 0:00:32]}  Nd7 {[%clk 0:01:24]} 25. d4 {[%clk 0:00:18]}  Qh4+ {[%clk 0:01:22]} 26. Kd2 {[%clk 0:00:11]}  Qxf4+ {[%clk 0:01:21]} 27. Kc3 {[%clk 0:00:11]}  Qe3+ {[%clk 0:01:13]} 28. Kb4 {[%clk 0:00:11]}  Ke7 {[%clk 0:01:07]} 29. Bd5 {[%clk 0:00:05]}  Rb8+ {[%clk 0:01:04]} 30. Kxa4 {[%clk 0:00:05]}  Rxb2 {[%clk 0:01:03]} 31. Rb1 {[%clk 0:00:00]}  Bxb1 {[%clk 0:01:01]} 0-1


[Site "https://www.chess.com"]

[Event "Titled Tuesday Blitz August 08 Late 2023"]
[White "elcala"]
[Black "Ward, Ieuan C"]
[BlackFideId "406627"]
[WhiteElo "1735"]
[BlackElo "2250"]
[Result "0-1"]
[Round "6"]
[TimeControl "180+1"]
[Date "2023.08.08"]
[WhiteClock "0:00:00"]
[BlackClock "0:00:26"]
[Board "158"]

1. d4 {[%clk 0:02:54]}  e5 {[%clk 0:02:59]} 2. dxe5 {[%clk 0:02:53]}  d6 {[%clk 0:03:00]} 3. Nf3 {[%clk 0:02:49]}  Nc6 {[%clk 0:02:59]} 4. exd6 {[%clk 0:02:48]}  Bxd6 {[%clk 0:02:58]} 5. Nc3 {[%clk 0:02:45]}  Qe7 {[%clk 0:02:58]} 6. e3 {[%clk 0:02:42]}  Bg4 {[%clk 0:02:58]} 7. Be2 {[%clk 0:02:41]}  h5 {[%clk 0:02:58]} 8. h3 {[%clk 0:02:40]}  Bf5 {[%clk 0:02:58]} 9. Nd4 {[%clk 0:02:36]}  Bd7 {[%clk 0:02:56]} 10. Nxc6 {[%clk 0:02:34]}  Bxc6 {[%clk 0:02:56]} 11. Bf3 {[%clk 0:02:33]}  Bxf3 {[%clk 0:02:55]} 12. Qxf3 {[%clk 0:02:34]}  O-O-O {[%clk 0:02:53]} 13. Bd2 {[%clk 0:02:28]}  a6 {[%clk 0:02:49]} 14. O-O-O {[%clk 0:02:27]}  Nf6 {[%clk 0:02:49]} 15. Ne2 {[%clk 0:02:09]}  Qe6 {[%clk 0:02:45]} 16. Kb1 {[%clk 0:02:01]}  Be5 {[%clk 0:02:46]} 17. Bc3 {[%clk 0:01:54]}  Bxc3 {[%clk 0:02:43]} 18. Nxc3 {[%clk 0:01:52]}  Qc4 {[%clk 0:02:41]} 19. a3 {[%clk 0:01:21]}  Kb8 {[%clk 0:02:38]} 20. Qe2 {[%clk 0:01:19]}  Qc6 {[%clk 0:02:29]} 21. Qf3 {[%clk 0:01:13]}  Qc4 {[%clk 0:02:20]} 22. Qe2 {[%clk 0:01:12]}  Qe6 {[%clk 0:02:17]} 23. Rxd8+ {[%clk 0:01:06]}  Rxd8 {[%clk 0:02:17]} 24. Rd1 {[%clk 0:01:07]}  Re8 {[%clk 0:02:13]} 25. Qf3 {[%clk 0:00:59]}  Qc4 {[%clk 0:02:10]} 26. Nd5 {[%clk 0:00:43]}  Nxd5 {[%clk 0:01:54]} 27. Qxd5 {[%clk 0:00:44]}  Qe2 {[%clk 0:01:46]} 28. Qd2 {[%clk 0:00:42]}  Qb5 {[%clk 0:01:40]} 29. Qd3 {[%clk 0:00:41]}  Qg5 {[%clk 0:01:36]} 30. g3 {[%clk 0:00:39]}  Qf6 {[%clk 0:01:19]} 31. Qe2 {[%clk 0:00:34]}  Re6 {[%clk 0:01:14]} 32. Qxh5 {[%clk 0:00:30]}  Rb6 {[%clk 0:01:14]} 33. b3 {[%clk 0:00:18]}  g6 {[%clk 0:00:59]} 34. Qd5 {[%clk 0:00:17]}  Rd6 {[%clk 0:00:57]} 35. Qh1 {[%clk 0:00:10]}  Rc6 {[%clk 0:00:49]} 36. Rd2 {[%clk 0:00:08]}  Qe7 {[%clk 0:00:45]} 37. Qd1 {[%clk 0:00:08]}  Qxa3 {[%clk 0:00:42]} 38. Rd8+ {[%clk 0:00:08]}  Ka7 {[%clk 0:00:42]} 39. Qd4+ {[%clk 0:00:09]}  b6 {[%clk 0:00:41]} 40. Qd5 {[%clk 0:00:05]}  Qc5 {[%clk 0:00:33]} 41. Qxc5 {[%clk 0:00:04]}  Rxc5 {[%clk 0:00:34]} 42. Rd7 {[%clk 0:00:04]}  f6 {[%clk 0:00:32]} 43. Rh7 {[%clk 0:00:03]}  Kb7 {[%clk 0:00:31]} 44. Rh6 {[%clk 0:00:03]}  Rf5 {[%clk 0:00:29]} 45. f4 {[%clk 0:00:02]}  g5 {[%clk 0:00:28]} 46. fxg5 {[%clk 0:00:00]}  fxg5 {[%clk 0:00:26]} 0-1


[Site "https://www.chess.com"]

[Event "Titled Tuesday Blitz August 08 Late 2023"]
[White "Burke, Paul"]
[Black "Tqebuchava, Zurab"]
[WhiteFideId "2605767"]
[BlackFideId "13601113"]
[WhiteElo "1865"]
[BlackElo "2255"]
[Result "0-1"]
[Round "6"]
[TimeControl "180+1"]
[Date "2023.08.08"]
[WhiteClock "0:00:25"]
[BlackClock "0:00:27"]
[Board "159"]

1. e4 {[%clk 0:02:46]}  d6 {[%clk 0:02:56]} 2. Nc3 {[%clk 0:02:45]}  g6 {[%clk 0:02:57]} 3. g3 {[%clk 0:02:45]}  Bg7 {[%clk 0:02:57]} 4. Bg2 {[%clk 0:02:46]}  c5 {[%clk 0:02:58]} 5. Nge2 {[%clk 0:02:46]}  Nc6 {[%clk 0:02:58]} 6. O-O {[%clk 0:02:46]}  Nf6 {[%clk 0:02:50]} 7. d3 {[%clk 0:02:46]}  O-O {[%clk 0:02:45]} 8. h3 {[%clk 0:02:46]}  Nd4 {[%clk 0:02:44]} 9. f4 {[%clk 0:02:44]}  Nd7 {[%clk 0:02:32]} 10. g4 {[%clk 0:02:44]}  Rb8 {[%clk 0:02:24]} 11. Ng3 {[%clk 0:02:43]}  b5 {[%clk 0:02:19]} 12. Nce2 {[%clk 0:02:43]}  c4 {[%clk 0:02:01]} 13. c3 {[%clk 0:02:40]}  Nxe2+ {[%clk 0:01:59]} 14. Qxe2 {[%clk 0:02:40]}  cxd3 {[%clk 0:01:59]} 15. Qxd3 {[%clk 0:02:39]}  b4 {[%clk 0:01:54]} 16. Kh2 {[%clk 0:02:13]}  bxc3 {[%clk 0:01:53]} 17. bxc3 {[%clk 0:02:12]}  Qa5 {[%clk 0:01:44]} 18. Bd2 {[%clk 0:01:57]}  Ba6 {[%clk 0:01:28]} 19. c4 {[%clk 0:01:56]}  Bxc4 {[%clk 0:01:10]} 20. Qxc4 {[%clk 0:01:32]}  Qxd2 {[%clk 0:01:08]} 21. Rad1 {[%clk 0:01:31]}  Qc3 {[%clk 0:01:03]} 22. Qa6 {[%clk 0:01:00]}  Rb2 {[%clk 0:00:55]} 23. Qxa7 {[%clk 0:00:53]}  Qc2 {[%clk 0:00:47]} 24. Rg1 {[%clk 0:00:50]}  Nc5 {[%clk 0:00:43]} 25. e5 {[%clk 0:00:45]}  dxe5 {[%clk 0:00:34]} 26. Qxe7 {[%clk 0:00:37]}  exf4 {[%clk 0:00:29]} 27. Ne4 {[%clk 0:00:25]}  Nxe4 {[%clk 0:00:27]} 0-1


[Site "https://www.chess.com"]

[Event "Titled Tuesday Blitz August 08 Late 2023"]
[White "alfianasybullina"]
[Black "Liu, Casper"]
[BlackFideId "1454153"]
[WhiteElo "2238"]
[BlackElo "2450"]
[Result "0-1"]
[Round "6"]
[TimeControl "180+1"]
[Date "2023.08.08"]
[WhiteClock "0:02:03"]
[BlackClock "0:01:43"]
[Board "160"]

1. Nf3 {[%clk 0:02:26]}  Nf6 {[%clk 0:02:57]} 2. g3 {[%clk 0:02:25]}  g6 {[%clk 0:02:56]} 3. Bg2 {[%clk 0:02:26]}  Bg7 {[%clk 0:02:56]} 4. O-O {[%clk 0:02:27]}  O-O {[%clk 0:02:57]} 5. d4 {[%clk 0:02:28]}  d5 {[%clk 0:02:57]} 6. Bf4 {[%clk 0:02:28]}  c5 {[%clk 0:02:54]} 7. c3 {[%clk 0:02:28]}  Nc6 {[%clk 0:02:54]} 8. e3 {[%clk 0:02:28]}  Bf5 {[%clk 0:02:52]} 9. h3 {[%clk 0:02:29]}  Re8 {[%clk 0:02:51]} 10. g4 {[%clk 0:02:29]}  Bc8 {[%clk 0:02:43]} 11. Nbd2 {[%clk 0:02:29]}  b6 {[%clk 0:02:38]} 12. Rc1 {[%clk 0:02:28]}  Ba6 {[%clk 0:02:38]} 13. Re1 {[%clk 0:02:27]}  Rc8 {[%clk 0:02:38]} 14. Ne5 {[%clk 0:02:26]}  Nxe5 {[%clk 0:02:30]} 15. Bxe5 {[%clk 0:02:27]}  e6 {[%clk 0:02:24]} 16. g5 {[%clk 0:02:24]}  Nd7 {[%clk 0:02:21]} 17. Bxg7 {[%clk 0:02:24]}  Kxg7 {[%clk 0:02:19]} 18. Qg4 {[%clk 0:02:22]}  Bd3 {[%clk 0:02:10]} 19. Qh4 {[%clk 0:02:21]}  Qe7 {[%clk 0:01:57]} 20. e4 {[%clk 0:02:12]}  cxd4 {[%clk 0:01:52]} 21. exd5 {[%clk 0:02:12]}  dxc3 {[%clk 0:01:48]} 22. Rc2 {[%clk 0:02:03]}  Bxc2 {[%clk 0:01:43]} 0-1


[Site "https://www.chess.com"]

[Event "Titled Tuesday Blitz August 08 Late 2023"]
[White "Osiecki, Stanislaw"]
[Black "Mesa Cruz, Juan Carlos"]
[WhiteFideId "1102990"]
[BlackFideId "6423400"]
[WhiteElo "2005"]
[BlackElo "2401"]
[Result "0-1"]
[Round "6"]
[TimeControl "180+1"]
[Date "2023.08.08"]
[WhiteClock "0:00:00"]
[BlackClock "0:00:39"]
[Board "161"]

1. e4 {[%clk 0:02:57]}  c5 {[%clk 0:02:55]} 2. c3 {[%clk 0:02:56]}  d5 {[%clk 0:02:54]} 3. e5 {[%clk 0:02:56]}  d4 {[%clk 0:02:47]} 4. Bc4 {[%clk 0:02:55]}  Nc6 {[%clk 0:02:46]} 5. Nf3 {[%clk 0:02:55]}  e6 {[%clk 0:02:42]} 6. O-O {[%clk 0:02:54]}  Nge7 {[%clk 0:02:42]} 7. a4 {[%clk 0:02:54]}  Ng6 {[%clk 0:02:41]} 8. Re1 {[%clk 0:02:53]}  Be7 {[%clk 0:02:41]} 9. d3 {[%clk 0:02:53]}  O-O {[%clk 0:02:41]} 10. Qe2 {[%clk 0:02:53]}  dxc3 {[%clk 0:02:35]} 11. bxc3 {[%clk 0:02:52]}  b6 {[%clk 0:02:34]} 12. Qe4 {[%clk 0:02:48]}  Bb7 {[%clk 0:02:33]} 13. Qg4 {[%clk 0:02:48]}  Na5 {[%clk 0:02:33]} 14. Nbd2 {[%clk 0:02:42]}  Nxc4 {[%clk 0:02:31]} 15. dxc4 {[%clk 0:02:36]}  Qd3 {[%clk 0:02:29]} 16. Re3 {[%clk 0:02:32]}  Qc2 {[%clk 0:02:23]} 17. h4 {[%clk 0:02:19]}  Qf5 {[%clk 0:02:06]} 18. Qg3 {[%clk 0:02:15]}  h5 {[%clk 0:02:02]} 19. Nf1 {[%clk 0:01:58]}  Rad8 {[%clk 0:01:53]} 20. Bb2 {[%clk 0:01:49]}  Nf4 {[%clk 0:01:36]} 21. a5 {[%clk 0:01:18]}  Rd3 {[%clk 0:01:35]} 22. Kh2 {[%clk 0:01:13]}  Rfd8 {[%clk 0:01:07]} 23. axb6 {[%clk 0:01:12]}  axb6 {[%clk 0:01:07]} 24. Ra7 {[%clk 0:01:11]}  R8d7 {[%clk 0:01:06]} 25. Rxd3 {[%clk 0:01:06]}  Nxd3 {[%clk 0:01:04]} 26. Ne3 {[%clk 0:00:59]}  Qf4 {[%clk 0:00:59]} 27. Ba3 {[%clk 0:00:56]}  Bc6 {[%clk 0:00:49]} 28. Rxd7 {[%clk 0:00:54]}  Bxd7 {[%clk 0:00:50]} 29. Qxf4 {[%clk 0:00:53]}  Nxf4 {[%clk 0:00:50]} 30. Ne1 {[%clk 0:00:51]}  Ne2 {[%clk 0:00:48]} 31. Bb2 {[%clk 0:00:47]}  Bxh4 {[%clk 0:00:47]} 32. g3 {[%clk 0:00:45]}  Bg5 {[%clk 0:00:46]} 33. f4 {[%clk 0:00:45]}  Nxf4 {[%clk 0:00:46]} 34. Nf3 {[%clk 0:00:40]}  Nd3 {[%clk 0:00:37]} 35. Nxg5 {[%clk 0:00:38]}  Nxb2 {[%clk 0:00:35]} 36. Ne4 {[%clk 0:00:38]}  Na4 {[%clk 0:00:29]} 37. Nd1 {[%clk 0:00:35]}  Bc6 {[%clk 0:00:28]} 38. Nd6 {[%clk 0:00:35]}  Bf3 {[%clk 0:00:28]} 39. Ne3 {[%clk 0:00:33]}  Nxc3 {[%clk 0:00:29]} 40. Nc8 {[%clk 0:00:29]}  Na4 {[%clk 0:00:29]} 41. Kg1 {[%clk 0:00:27]}  Bb7 {[%clk 0:00:28]} 42. Nd6 {[%clk 0:00:26]}  Ba6 {[%clk 0:00:29]} 43. Kf2 {[%clk 0:00:25]}  Kf8 {[%clk 0:00:29]} 44. g4 {[%clk 0:00:23]}  hxg4 {[%clk 0:00:28]} 45. Nxg4 {[%clk 0:00:23]}  Ke7 {[%clk 0:00:29]} 46. Ne3 {[%clk 0:00:22]}  f5 {[%clk 0:00:30]} 47. Kf3 {[%clk 0:00:21]}  g5 {[%clk 0:00:30]} 48. Nf1 {[%clk 0:00:16]}  Nb2 {[%clk 0:00:30]} 49. Ne3 {[%clk 0:00:15]}  Nd3 {[%clk 0:00:31]} 50. Ke2 {[%clk 0:00:14]}  Nxe5 {[%clk 0:00:31]} 51. Ndxf5+ {[%clk 0:00:12]}  exf5 {[%clk 0:00:31]} 52. Nxf5+ {[%clk 0:00:12]}  Kf6 {[%clk 0:00:32]} 53. Nd6 {[%clk 0:00:12]}  Bxc4+ {[%clk 0:00:32]} 54. Ke3 {[%clk 0:00:07]}  Be6 {[%clk 0:00:32]} 55. Ne4+ {[%clk 0:00:05]}  Kg6 {[%clk 0:00:33]} 56. Nc3 {[%clk 0:00:05]}  Ng4+ {[%clk 0:00:34]} 57. Ke4 {[%clk 0:00:05]}  Nf6+ {[%clk 0:00:35]} 58. Ke5 {[%clk 0:00:05]}  Bf5 {[%clk 0:00:35]} 59. Na4 {[%clk 0:00:04]}  Ng4+ {[%clk 0:00:36]} 60. Kd6 {[%clk 0:00:02]}  b5 {[%clk 0:00:37]} 61. Nb6 {[%clk 0:00:02]}  b4 {[%clk 0:00:38]} 62. Nc4 {[%clk 0:00:02]}  b3 {[%clk 0:00:38]} 63. Nb2 {[%clk 0:00:02]}  Ne3 {[%clk 0:00:39]} 64. Kxc5 {[%clk 0:00:02]}  g4 {[%clk 0:00:38]} 65. Kd4 {[%clk 0:00:02]}  Nc2+ {[%clk 0:00:38]} 66. Ke5 {[%clk 0:00:00]}  g3 {[%clk 0:00:39]} 0-1


[Site "https://www.chess.com"]

[Event "Titled Tuesday Blitz August 08 Late 2023"]
[White "Suarez Pousa, Diego"]
[Black "Semenova, Alina"]
[WhiteFideId "2204509"]
[BlackFideId "24113875"]
[WhiteElo "2365"]
[BlackElo "2095"]
[Result "1-0"]
[Round "6"]
[TimeControl "180+1"]
[Date "2023.08.08"]
[WhiteClock "0:00:09"]
[BlackClock "0:00:00"]
[Board "162"]

1. e4 {[%clk 0:03:00]}  e5 {[%clk 0:02:59]} 2. Nf3 {[%clk 0:03:00]}  Nf6 {[%clk 0:02:59]} 3. Nxe5 {[%clk 0:02:59]}  d6 {[%clk 0:02:58]} 4. Nf3 {[%clk 0:02:59]}  Nxe4 {[%clk 0:02:58]} 5. d4 {[%clk 0:03:00]}  d5 {[%clk 0:02:59]} 6. Bd3 {[%clk 0:03:00]}  Bd6 {[%clk 0:02:59]} 7. O-O {[%clk 0:03:00]}  O-O {[%clk 0:03:00]} 8. c4 {[%clk 0:02:59]}  c6 {[%clk 0:02:59]} 9. Nc3 {[%clk 0:02:56]}  Nxc3 {[%clk 0:02:58]} 10. bxc3 {[%clk 0:02:56]}  Bg4 {[%clk 0:02:59]} 11. cxd5 {[%clk 0:02:56]}  cxd5 {[%clk 0:02:58]} 12. Rb1 {[%clk 0:02:56]}  b6 {[%clk 0:02:55]} 13. Rb5 {[%clk 0:02:37]}  Qc7 {[%clk 0:01:51]} 14. h3 {[%clk 0:02:29]}  Be6 {[%clk 0:01:38]} 15. Bd2 {[%clk 0:02:21]}  a6 {[%clk 0:01:29]} 16. Rb1 {[%clk 0:02:20]}  Nd7 {[%clk 0:01:07]} 17. Re1 {[%clk 0:02:00]}  Rfe8 {[%clk 0:00:57]} 18. Ng5 {[%clk 0:01:19]}  Bf4 {[%clk 0:00:48]} 19. Nxe6 {[%clk 0:01:05]}  Rxe6 {[%clk 0:00:45]} 20. Bxf4 {[%clk 0:00:48]}  Qxf4 {[%clk 0:00:42]} 21. Qh5 {[%clk 0:00:46]}  Nf6 {[%clk 0:00:35]} 22. Qf5 {[%clk 0:00:43]}  Rxe1+ {[%clk 0:00:14]} 23. Rxe1 {[%clk 0:00:41]}  Qxf5 {[%clk 0:00:15]} 24. Bxf5 {[%clk 0:00:41]}  Re8 {[%clk 0:00:13]} 25. Rxe8+ {[%clk 0:00:23]}  Nxe8 {[%clk 0:00:14]} 26. Bc8 {[%clk 0:00:24]}  Nc7 {[%clk 0:00:08]} 27. f4 {[%clk 0:00:20]}  g6 {[%clk 0:00:05]} 28. Kf2 {[%clk 0:00:20]}  Kg7 {[%clk 0:00:03]} 29. Ke3 {[%clk 0:00:20]}  f5 {[%clk 0:00:03]} 30. Bb7 {[%clk 0:00:16]}  Kf6 {[%clk 0:00:02]} 31. Kf3 {[%clk 0:00:16]}  Ke6 {[%clk 0:00:02]} 32. g4 {[%clk 0:00:14]}  a5 {[%clk 0:00:01]} 33. Kg3 {[%clk 0:00:13]}  Kf6 {[%clk 0:00:02]} 34. Kh4 {[%clk 0:00:12]}  Kg7 {[%clk 0:00:01]} 35. Kg5 {[%clk 0:00:11]}  fxg4 {[%clk 0:00:01]} 36. hxg4 {[%clk 0:00:10]}  Nb5 {[%clk 0:00:02]} 37. Bxd5 {[%clk 0:00:09]}  Nxc3 {[%clk 0:00:02]} 38. Bc4 {[%clk 0:00:09]}  b5 {[%clk 0:00:02]} 39. Be6 {[%clk 0:00:09]}  a4 {[%clk 0:00:01]} 40. a3 {[%clk 0:00:08]}  Nb1 {[%clk 0:00:01]} 41. d5 {[%clk 0:00:08]}  Nxa3 {[%clk 0:00:00]} 42. d6 {[%clk 0:00:09]} 1-0


[Site "https://www.chess.com"]